lending/lending_fUSD_20241214
["ID","MTS","AMOUNT","RATE_DAILY","PERIOD"]
[345334963,1734159031858,-1000.0,0.000201,2]
[345334964,1734159031868,-7500.966069,0.00020101,2]
[345334965,1734159031880,-732.71372382,0.00020101,2]
[345334966,1734159031891,-568.099995,0.00020101,2]
[345334967,1734159031925,-10052.0,0.00020101,2]
[345334968,1734159031938,-140.53021218,0.00020101,2]
[345334969,1734159031947,-1187.88,0.00020125,2]
[345334970,1734159031956,-316.51,0.00020152,2]
[345334971,1734159031966,-262.3,0.0002019,2]
[345334972,1734159031975,-92.77978782,0.00020297,2]
[345334973,1734159031988,-570.48021218,0.00020297,2]
[345334974,1734159031998,-517.17,0.00020413,2]
[345334975,1734159032007,-217.49,0.00020655,2]
[345334976,1734159032016,-503.0,0.00020767,2]
[345334977,1734159032026,-982.53,0.00020869,2]
[345334978,1734159032035,-408.5,0.00020877,15]
[345334979,1734159032045,-15.0975488,0.0002098,2]
[345334980,1734159032056,-334.40999352,0.0002098,2]
[345334981,1734159032067,-8.8974886,0.0002098,2]
[345334982,1734159032077,-442.98269721,0.00021,3]
[345335074,1734159037538,-500.0,0.00020999,2]
[345335076,1734159037547,-210.73749803,0.00020999,2]
[345335077,1734159037556,-9015.49480439,0.00021,3]
[345335078,1734159037666,-984290.42690353,0.00021,3]
[345335079,1734159037676,-300.0,0.00021,3]
[345335080,1734159037685,-1021.0,0.00021038,2]
[345335081,1734159037696,-2029.86184,0.0002104,2]
[345335082,1734159037705,-1003.81,0.00021043,2]
[345335083,1734159037715,-1000.0,0.000211,2]
[345335084,1734159037724,-1002.9,0.00021111,2]
[345335085,1734159037733,-1216.335,0.00021117,2]
[345335086,1734159037742,-183.642,0.00021117,2]
[345335087,1734159037751,-29136.0248,0.00021149,2]
[345335088,1734159037760,-1000.0,0.00021149,2]
[345335089,1734159037770,-500.0,0.0002115,2]
[345335090,1734159037779,-21467.9707,0.0002115,2]
[345335091,1734159037789,-2500.0,0.0002115,2]
[345335092,1734159037799,-316.51,0.00021159,2]
[345335093,1734159037808,-998.02,0.00021187,2]
[345335094,1734159037818,-250.24,0.000212,2]
[345335095,1734159037827,-324.0,0.000212,9]
[345335096,1734159037837,-150.121415,0.00021248,9]
[345335097,1734159037848,-150.121415,0.00021248,8]
[345335098,1734159037859,-249.121415,0.00021248,7]
[345335099,1734159037868,-503.33483509,0.00021248,3]
[345335100,1734159037878,-500.0,0.00021248,3]
[345335101,1734159037887,-500.3083874,0.00021248,3]
[345335102,1734159037896,-500.0,0.00021248,3]
[345335103,1734159037904,-500.0,0.00021248,3]
[345335104,1734159037914,-500.0,0.00021248,3]
[345335105,1734159037923,-603.53902885,0.00021248,3]
[345335106,1734159037932,-500.0,0.00021248,3]
[345335107,1734159037942,-500.0,0.00021248,3]
[345335109,1734159037951,-500.0,0.00021248,3]
[345335111,1734159037960,-500.0,0.00021248,3]
[345335113,1734159037969,-500.0,0.00021248,3]
[345335115,1734159037978,-500.0,0.00021248,3]
[345335116,1734159037987,-500.0,0.00021248,3]
[345335118,1734159037996,-500.0,0.00021248,3]
[345335120,1734159038006,-500.0,0.00021248,3]
[345335121,1734159038015,-500.0,0.00021248,3]
[345335122,1734159038025,-500.0,0.00021248,3]
[345335123,1734159038034,-500.0,0.00021248,3]
[345335124,1734159038043,-500.0,0.00021248,3]
[345335125,1734159038052,-500.0,0.00021248,3]
[345335126,1734159038062,-500.0,0.00021248,3]
[345335127,1734159038071,-500.0,0.00021248,3]
[345335128,1734159038081,-500.0,0.00021248,3]
[345335129,1734159038090,-500.0,0.00021248,3]
[345335130,1734159038099,-500.0,0.00021248,3]
[345335132,1734159038109,-7500.0,0.00021248,2]
[345335133,1734159038120,-500.0,0.00021248,3]
[345335136,1734159038129,-500.0,0.00021248,3]
[345335137,1734159038138,-500.0,0.00021248,3]
[345335139,1734159038147,-150.121415,0.00021248,7]
[345335141,1734159038156,-150.121415,0.00021248,6]
[345335143,1734159038166,-500.0,0.00021248,3]
[345335145,1734159038175,-150.121415,0.00021248,5]
[345335148,1734159038187,-150.121415,0.00021248,4]
[345335150,1734159038199,-150.121415,0.00021248,3]
[345335152,1734159038210,-500.0,0.00021248,3]
[345335155,1734159038223,-150.121415,0.00021248,2]
[345335157,1734159038234,-500.0,0.00021248,3]
[345335159,1734159038246,-500.0,0.00021248,3]
[345335162,1734159038256,-500.0,0.00021248,3]
[345335164,1734159038266,-500.0,0.00021248,3]
[345335166,1734159038276,-500.0,0.00021249,3]
[345335168,1734159038288,-466.39,0.00021249,3]
[345335170,1734159038299,-500.0,0.00021249,3]
[345335172,1734159038310,-500.0,0.00021249,3]
[345335175,1734159038321,-500.0,0.00021249,3]
[345335177,1734159038333,-500.0,0.00021249,3]
[345335179,1734159038344,-500.0,0.00021249,3]
[345335181,1734159038355,-500.0,0.00021249,3]
[345335183,1734159038366,-500.0,0.00021249,3]
[345335186,1734159038378,-454.86,0.00021249,3]
[345335188,1734159038388,-500.0,0.00021249,3]
[345335190,1734159038400,-500.0,0.00021249,3]
[345335192,1734159038410,-500.0,0.00021249,3]
[345335194,1734159038421,-150.121415,0.00021249,2]
[345335196,1734159038434,-500.0,0.00021249,3]
[345335198,1734159038447,-150.121415,0.00021249,3]
[345335201,1734159038458,-150.121415,0.00021249,4]
[345335203,1734159038467,-150.121415,0.00021249,5]
[345335205,1734159038477,-150.121415,0.00021249,6]
[345335207,1734159038488,-150.121415,0.00021249,7]
[345335209,1734159038499,-150.121415,0.00021249,8]
[345335211,1734159038511,-500.0,0.00021249,3]
[345335213,1734159038522,-150.121415,0.00021249,9]
[345335216,1734159038533,-514.03719516,0.00021249,3]
[345335218,1734159038544,-500.0,0.00021249,3]
[345335220,1734159038554,-500.0,0.00021249,3]
[345335222,1734159038565,-500.0,0.00021249,3]
[345335224,1734159038576,-500.0,0.00021249,3]
[345335226,1734159038587,-500.0,0.00021249,3]
[345335229,1734159038598,-500.0,0.00021249,3]
[345335231,1734159038608,-500.0,0.00021249,3]
[345335233,1734159038619,-500.0,0.00021249,3]
[345335235,1734159038630,-500.0,0.00021249,3]
[345335237,1734159038640,-500.0,0.00021249,3]
[345335239,1734159038652,-502.372686,0.00021249,3]
[345335242,1734159038662,-500.0,0.00021249,3]
[345335244,1734159038672,-500.0,0.00021249,3]
[345335246,1734159038683,-500.0,0.00021249,3]
[345335248,1734159038695,-517.48621382,0.00021249,3]
[345335250,1734159038706,-500.0,0.00021249,3]
[345335252,1734159038716,-257.63143146,0.00021249,3]
[345335255,1734159038727,-500.0,0.00021249,3]
[345335257,1734159038738,-500.0,0.00021249,3]
[345335259,1734159038749,-500.0,0.00021249,3]
[345335261,1734159038759,-500.0,0.00021249,3]
[345335263,1734159038769,-500.0,0.00021249,3]
[345335265,1734159038779,-500.0,0.00021249,3]
[345335268,1734159038791,-355.50259366,0.00021249,3]
[345335270,1734159038801,-776.39,0.00021249,2]
[345335272,1734159038811,-500.0,0.00021249,3]
[345335274,1734159038822,-500.0,0.00021249,3]
[345335276,1734159038833,-500.0,0.00021249,3]
[345335278,1734159038843,-500.0,0.00021249,3]
[345335280,1734159038854,-500.0,0.00021249,3]
[345335283,1734159038866,-500.0,0.00021249,3]
[345335285,1734159038877,-500.0,0.00021249,3]
[345335287,1734159038887,-500.0,0.00021249,3]
[345335289,1734159038897,-500.0,0.00021249,3]
[345335291,1734159038907,-415.24,0.00021249,3]
[345335293,1734159038918,-500.0,0.00021249,3]
[345335295,1734159038927,-500.0,0.00021249,3]
[345335297,1734159038936,-500.0,0.00021249,3]
[345335299,1734159038947,-614.64,0.00021249,3]
[345335302,1734159038956,-500.0,0.00021249,3]
[345335304,1734159038966,-500.0,0.00021249,3]
[345335306,1734159038976,-500.0,0.00021249,3]
[345335307,1734159038986,-500.0,0.00021249,3]
[345335310,1734159038996,-500.0,0.00021249,3]
[345335312,1734159039008,-500.0,0.00021249,3]
[345335314,1734159039019,-568.88,0.00021249,3]
[345335315,1734159039029,-500.0,0.00021249,3]
[345335316,1734159039038,-500.0,0.00021249,3]
[345335317,1734159039048,-500.0,0.00021249,3]
[345335318,1734159039057,-500.0,0.00021249,3]
[345335319,1734159039066,-500.0,0.00021249,3]
[345335320,1734159039076,-500.0,0.00021249,3]
[345335321,1734159039085,-500.0,0.00021249,3]
[345335322,1734159039095,-628.9,0.00021249,3]
[345335323,1734159039105,-500.0,0.00021249,3]
[345335326,1734159039116,-500.0,0.00021249,3]
[345335328,1734159039127,-500.0,0.00021249,3]
[345335330,1734159039138,-250.35,0.00021249,3]
[345335332,1734159039149,-500.0,0.00021249,3]
[345335334,1734159039159,-574.68,0.00021249,3]
[345335336,1734159039169,-500.0,0.00021249,3]
[345335339,1734159039179,-500.0,0.00021249,3]
[345335341,1734159039190,-227.54,0.00021249,3]
[345335343,1734159039200,-206.75439448,0.00021249,3]
[345335345,1734159039210,-503.57442226,0.00021249,3]
[345335347,1734159039220,-500.0,0.00021249,3]
[345335349,1734159039231,-500.0,0.00021249,3]
[345335351,1734159039242,-500.0,0.00021249,3]
[345335353,1734159039252,-500.0,0.00021249,3]
[345335355,1734159039262,-402.64,0.00021249,3]
[345335357,1734159039272,-500.0,0.00021249,3]
[345335360,1734159039281,-500.0,0.00021249,3]
[345335362,1734159039291,-500.0,0.00021249,3]
[345335364,1734159039301,-500.0,0.00021249,3]
[345335366,1734159039312,-151.32,0.00021249,3]
[345335368,1734159039322,-500.0,0.00021249,3]
[345335370,1734159039332,-500.0,0.00021249,3]
[345335372,1734159039342,-500.0,0.00021249,3]
[345335374,1734159039352,-500.0,0.00021249,3]
[345335376,1734159039363,-500.0,0.00021249,3]
[345335378,1734159039374,-468.56,0.00021249,3]
[345335381,1734159039384,-500.0,0.00021249,3]
[345335383,1734159039394,-500.0,0.00021249,3]
[345335385,1734159039404,-500.0,0.00021249,3]
[345335387,1734159039414,-500.0,0.00021249,3]
[345335389,1734159039424,-500.0,0.00021249,3]
[345335391,1734159039437,-500.0,0.00021249,3]
[345335393,1734159039449,-500.0,0.00021249,3]
[345335395,1734159039459,-500.0,0.00021249,3]
[345335397,1734159039469,-500.0,0.00021249,3]
[345335399,1734159039482,-577.28,0.00021249,3]
[345335401,1734159039492,-500.0,0.00021249,3]
[345335403,1734159039503,-500.0,0.00021249,3]
[345335406,1734159039513,-500.0,0.00021249,3]
[345335408,1734159039523,-500.0,0.00021249,3]
[345335410,1734159039534,-500.0,0.00021249,3]
[345335412,1734159039546,-500.0,0.00021249,3]
[345335414,1734159039556,-500.0,0.00021249,3]
[345335416,1734159039567,-500.0,0.00021249,3]
[345335418,1734159039577,-500.0,0.00021249,3]
[345335421,1734159039588,-500.0,0.00021249,3]
[345335423,1734159039598,-500.0,0.00021249,3]
[345335425,1734159039608,-500.0,0.00021249,3]
[345335427,1734159039618,-500.0,0.00021249,3]
[345335429,1734159039629,-500.0,0.00021249,3]
[345335431,1734159039640,-419.36,0.00021249,3]
[345335433,1734159039650,-500.0,0.00021249,3]
[345335435,1734159039660,-500.0,0.00021249,3]
[345335437,1734159039671,-500.0,0.00021249,3]
[345335439,1734159039681,-500.0,0.00021249,3]
[345335441,1734159039692,-500.0,0.00021249,3]
[345335443,1734159039703,-500.0,0.00021249,3]
[345335445,1734159039713,-500.0,0.00021249,3]
[345335448,1734159039724,-500.0,0.00021249,3]
[345335450,1734159039734,-500.0,0.00021249,3]
[345335452,1734159039745,-500.0,0.00021249,3]
[345335454,1734159039763,-518.24,0.00021249,3]
[345335456,1734159039773,-500.0,0.00021249,3]
[345335458,1734159039783,-500.0,0.00021249,3]
[345335460,1734159039793,-500.0,0.00021249,3]
[345335463,1734159039803,-500.0,0.00021249,3]
[345335465,1734159039813,-500.0,0.00021249,3]
[345335467,1734159039823,-500.0,0.00021249,3]
[345335469,1734159039834,-500.0,0.00021249,3]
[345335471,1734159039844,-500.0,0.00021249,3]
[345335473,1734159039854,-500.0,0.00021249,3]
[345335475,1734159039864,-500.0,0.00021249,3]
[345335477,1734159039874,-500.0,0.00021249,3]
[345335499,1734159040067,-500.0,0.00021249,3]
[345335501,1734159040076,-319.4,0.00021249,3]
[345335503,1734159040085,-500.0,0.00021249,3]
[345335505,1734159040094,-500.0,0.00021249,3]
[345335507,1734159040103,-500.0,0.00021249,3]
[345335510,1734159040113,-500.0,0.00021249,3]
[345335511,1734159040122,-500.0,0.00021249,3]
[345335513,1734159040131,-500.0,0.00021249,3]
[345335515,1734159040140,-500.0,0.00021249,3]
[345335518,1734159040149,-500.0,0.00021249,3]
[345335520,1734159040158,-500.0,0.00021249,3]
[345335522,1734159040167,-453.31,0.00021249,3]
[345335524,1734159040176,-500.0,0.00021249,3]
[345335526,1734159040185,-500.0,0.00021249,3]
[345335529,1734159040195,-500.0,0.00021249,3]
[345335531,1734159040204,-500.0,0.00021249,3]
[345335532,1734159040213,-500.0,0.00021249,3]
[345335534,1734159040222,-296.85,0.00021249,3]
[345335536,1734159040231,-500.0,0.00021249,3]
[345335538,1734159040241,-500.0,0.00021249,3]
[345335540,1734159040249,-500.0,0.00021249,3]
[345335542,1734159040259,-500.0,0.00021249,3]
[345335544,1734159040269,-500.0,0.00021249,3]
[345335546,1734159040278,-500.0,0.00021249,3]
[345335548,1734159040287,-500.0,0.00021249,3]
[345335550,1734159040296,-500.0,0.00021249,3]
[345335552,1734159040306,-500.0,0.00021249,3]
[345335554,1734159040315,-500.0,0.00021249,3]
[345335556,1734159040324,-500.0,0.00021249,3]
[345335558,1734159040333,-500.0,0.00021249,3]
[345335560,1734159040342,-500.0,0.00021249,3]
[345335562,1734159040351,-160.32,0.00021249,3]
[345335564,1734159040360,-500.0,0.00021249,3]
[345335566,1734159040370,-500.0,0.00021249,3]
[345335569,1734159040379,-500.0,0.00021249,3]
[345335571,1734159040388,-500.0,0.00021249,3]
[345335573,1734159040398,-500.0,0.00021249,3]
[345335574,1734159040407,-500.0,0.00021249,3]
[345335577,1734159040416,-500.0,0.00021249,3]
[345335578,1734159040425,-500.0,0.00021249,3]
[345335581,1734159040438,-500.0,0.00021249,3]
[345335583,1734159040448,-500.0,0.00021249,3]
[345335584,1734159040457,-500.0,0.00021249,3]
[345335587,1734159040467,-500.0,0.00021249,3]
[345335589,1734159040477,-500.0,0.00021249,3]
[345335591,1734159040486,-500.0,0.00021249,3]
[345335593,1734159040495,-500.0,0.00021249,3]
[345335595,1734159040504,-500.0,0.00021249,3]
[345335597,1734159040515,-500.0,0.00021249,3]
[345335599,1734159040524,-570.01,0.00021249,3]
[345335601,1734159040533,-500.0,0.00021249,3]
[345335603,1734159040542,-500.0,0.00021249,3]
[345335605,1734159040551,-206.56,0.00021249,3]
[345335607,1734159040562,-530.82,0.00021249,3]
[345335609,1734159040570,-500.0,0.00021249,3]
[345335611,1734159040579,-500.0,0.00021249,3]
[345335613,1734159040589,-351.55,0.00021249,3]
[345335615,1734159040598,-500.0,0.00021249,3]
[345335617,1734159040607,-278.21,0.00021249,3]
[345335619,1734159040616,-224.4,0.00021249,3]
[345335621,1734159040625,-500.0,0.00021249,3]
[345335623,1734159040635,-500.0,0.00021249,3]
[345335625,1734159040644,-500.0,0.00021249,3]
[345335627,1734159040653,-500.0,0.00021249,3]
[345335629,1734159040662,-500.0,0.00021249,3]
[345335631,1734159040671,-500.0,0.00021249,3]
[345335633,1734159040680,-500.0,0.00021249,3]
[345335635,1734159040692,-238.3866962,0.00021249,3]
[345335637,1734159040701,-500.0,0.00021249,3]
[345335639,1734159040711,-500.0,0.00021249,3]
[345335641,1734159040719,-500.0,0.00021249,3]
[345335643,1734159040729,-500.0,0.00021249,3]
[345335645,1734159040738,-500.0,0.00021249,3]
[345335647,1734159040747,-500.0,0.00021249,3]
[345335649,1734159040756,-500.0,0.00021249,3]
[345335651,1734159040766,-568.63945434,0.00021249,3]
[345335653,1734159040775,-500.0,0.00021249,3]
[345335655,1734159040784,-500.0,0.00021249,3]
[345335657,1734159040793,-500.0,0.00021249,3]
[345335659,1734159040803,-500.0,0.00021249,3]
[345335661,1734159040811,-631.72,0.00021249,3]
[345335663,1734159040821,-604.81,0.00021249,3]
[345335665,1734159040830,-584.96601931,0.00021249,3]
[345335666,1734159040839,-500.0,0.00021249,3]
[345335669,1734159040848,-500.0,0.00021249,3]
[345335671,1734159040858,-500.0,0.00021249,3]
[345335672,1734159040867,-500.0,0.00021249,3]
[345335673,1734159040877,-500.0,0.00021249,3]
[345335674,1734159040887,-500.0,0.00021249,3]
[345335675,1734159040897,-500.0,0.00021249,3]
[345335676,1734159040906,-500.0,0.00021249,3]
[345335677,1734159040915,-500.0,0.00021249,3]
[345335678,1734159040925,-477.74,0.00021249,3]
[345335679,1734159040934,-500.0,0.00021249,3]
[345335680,1734159040944,-7500.0,0.00021249,2]
[345335682,1734159040953,-233.24,0.00021249,3]
[345335685,1734159040963,-641.58,0.00021249,3]
[345335687,1734159040972,-500.0,0.00021249,3]
[345335688,1734159040985,-500.0,0.00021249,3]
[345335690,1734159040995,-500.0,0.00021249,3]
[345335693,1734159041004,-500.0,0.00021249,3]
[345335695,1734159041013,-336.43,0.00021249,3]
[345335696,1734159041022,-30000.0,0.0002125,2]
[345335699,1734159041032,-180940.01527909,0.0002125,4]
[345335700,1734159041041,-4633.6645752,0.0002125,2]
[345335702,1734159041051,-6283.1812228,0.0002125,2]
[345335704,1734159041059,-728.0,0.0002125,2]
[345335706,1734159041069,-1265.673,0.0002125,2]
[345335708,1734159041078,-567.0,0.0002125,2]
[345335710,1734159041087,-150.766,0.0002125,2]
[345335712,1734159041096,-2007.0,0.0002125,2]
[345335714,1734159041105,-632.0,0.0002125,2]
[345335716,1734159041115,-1895.0,0.0002125,2]
[345335718,1734159041123,-663.359,0.0002125,2]
[345335720,1734159041132,-817.0,0.0002125,2]
[345335722,1734159041141,-1254.0,0.0002125,2]
[345335724,1734159041150,-3765.0,0.0002125,2]
[345335726,1734159041160,-3630.0,0.0002125,2]
[345335728,1734159041170,-535.0,0.0002125,2]
[345335730,1734159041179,-930.0,0.0002125,2]
[345335732,1734159041188,-150.0,0.0002125,2]
[345335734,1734159041201,-250.0,0.0002125,2]
[345335736,1734159041211,-167.0,0.0002125,2]
[345335738,1734159041219,-156.463,0.0002125,2]
[345335740,1734159041229,-228.0,0.0002125,2]
[345335742,1734159041239,-151.793,0.0002125,2]
[345335745,1734159041248,-704.0,0.0002125,2]
[345335746,1734159041258,-13849777.66833625,0.0002125,2]
[345335751,1734159041293,-495.99999971,0.0002125,2]
[345335772,1734159041485,-521.65342929,0.00021248,3]
[345335774,1734159041494,-5091.00715098,0.0002125,2]
[345335776,1734159041506,-21986.35994053,0.0002125,2]
[345335778,1734159041517,-10225.97554422,0.0002125,2]
[345335781,1734159041532,-7959.43943476,0.0002125,2]
[345335783,1734159041543,-4303.71826695,0.0002125,2]
[345335785,1734159041555,-1994.81984683,0.0002125,2]
[345335788,1734159041570,-144668.99545005,0.0002125,2]
[345335796,1734159041632,-392.89000001,0.0002125,2]
[345335798,1734159041643,-745.2807579,0.0002125,2]
[345335800,1734159041654,-2156.10755533,0.0002125,2]
[345335812,1734159041763,-344.86393249,0.0002125,2]
[345335815,1734159041774,-338.5261675,0.0002125,2]
[345335909,1734159042706,-689.37,0.0002125,2]
[345335932,1734159042917,-1436.08843407,0.0002125,2]
[345335949,1734159043071,-78.99835477,0.0002125,2]
[345335951,1734159043083,-7437.089528,0.0002125,2]
[345336218,1734159045650,-150.0,0.0002125,2]
[345336219,1734159045659,-385.68203236,0.0002125,2]
[345336220,1734159045671,-1335.72801762,0.0002125,2]
[345336255,1734159046048,-2480.43794646,0.0002125,2]
[345336259,1734159046068,-1470.714,0.0002125,2]
[345336261,1734159046080,-3700.69662169,0.0002125,2]
[345336263,1734159046091,-2188.51092945,0.0002125,2]
[345336265,1734159046102,-3987.17116728,0.0002125,2]
[345336267,1734159046113,-1956.1,0.0002125,2]
[345336269,1734159046124,-2295.3999999,0.0002125,2]
[345336279,1734159046208,-545.0838522,0.0002125,2]
[345336282,1734159046220,-1006.8,0.0002125,2]
[345336299,1734159195680,43326.8937212,0.00013148,7]
[345336580,1734159689257,150.85,0.00010137,2]
[345336581,1734159756481,157.46904516,0.00013031,7]
[345336582,1734159757621,164545.051172,0.00013031,7]
[345336583,1734159903066,159.65567514,0.00013031,30]
[345336584,1734160033119,-336.9001302,0.00017232,2]
[345336585,1734160033142,-728.08,0.00017332,2]
[345336586,1734160033169,-500.0,0.00017414,2]
[345336587,1734160033195,-500.0,0.00017414,2]
[345336588,1734160033217,-152.237564,0.00017533,2]
[345336589,1734160033239,-1000.0,0.00019153,2]
[345336590,1734160033263,-150.0,0.00019178,2]
[345336591,1734160033287,-150.0,0.00019178,2]
[345336592,1734160033313,-150.85,0.00019198,2]
[345336593,1734160033336,-189.9,0.00019233,2]
[345336594,1734160033359,-719.04,0.00019317,2]
[345336595,1734160033383,-629.87,0.00019323,2]
[345336596,1734160033407,-200.0,0.00019323,2]
[345336597,1734160033430,-238.231702,0.00019356,2]
[345336598,1734160150486,1025.66,0.00012001,2]
[345336599,1734160156102,-3870.73785,0.00017314,2]
[345336611,1734160231753,-866.21552835,0.00017314,2]
[345336612,1734160231762,-613.89849514,0.00017414,2]
[345336613,1734160231770,-500.0,0.00017414,2]
[345336614,1734160231779,-216.97452484,0.00019175,2]
[345336615,1734160231787,-250.0,0.00019213,2]
[345336616,1734160231794,-360.02,0.00019245,2]
[345336617,1734160231802,-534.98719267,0.00019275,2]
[345336618,1734160232107,-124.55280733,0.00019275,2]
[345336619,1734160232115,-1852.42,0.00019289,2]
[345336620,1734160232124,-4571.12180199,0.00019314,2]
[345336621,1734160232134,-1017.2,0.00019314,2]
[345336622,1734160232145,-7935.06787463,0.00019314,2]
[345336623,1734160232180,-10376.61032338,0.00019314,2]
[345336624,1734160232191,-3732.378298,0.00019356,2]
[345336625,1734160232200,-254.68,0.00019405,2]
[345336626,1734160232209,-163.84,0.00019562,30]
[345336627,1734160232220,-728.08,0.00019596,2]
[345336628,1734160232229,-500.0,0.00019606,2]
[345336629,1734160232237,-216.97452483,0.00019607,2]
[345336630,1734160232246,-150.0,0.00019726,2]
[345336631,1734160232254,-500.0,0.00019726,2]
[345336632,1734160232263,-659.54,0.00019988,2]
[345336633,1734160232271,-216.97452483,0.00020039,2]
[345336634,1734160232280,-693.64,0.00020046,2]
[345336635,1734160232290,-693.64,0.00020052,2]
[345336636,1734160232300,-693.64,0.00020057,2]
[345336637,1734160232310,-693.64,0.00020062,2]
[345336638,1734160232318,-693.64,0.00020067,2]
[345336639,1734160232327,-693.64,0.00020073,2]
[345336640,1734160232335,-693.64,0.00020078,2]
[345336641,1734160232345,-693.64,0.00020083,2]
[345336642,1734160232354,-693.64,0.00020089,2]
[345336643,1734160232363,-1100.0,0.00020089,2]
[345336644,1734160232372,-693.64,0.00020094,2]
[345336645,1734160232381,-693.64,0.00020099,2]
[345336647,1734160232390,-693.64,0.00020104,2]
[345336649,1734160232399,-693.64,0.0002011,2]
[345336651,1734160232414,-693.64,0.00020115,2]
[345336653,1734160232423,-693.64,0.0002012,2]
[345336655,1734160232432,-693.64,0.00020126,2]
[345336657,1734160232441,-693.64,0.00020131,2]
[345336659,1734160232450,-693.64,0.00020136,2]
[345336661,1734160232460,-930.0,0.00020139,2]
[345336663,1734160232469,-3630.0,0.00020139,2]
[345336665,1734160232478,-535.0,0.00020139,2]
[345336667,1734160232487,-693.64,0.00020141,2]
[345336669,1734160232496,-693.64,0.00020147,2]
[345336670,1734160232505,-500.89593824,0.0002015,2]
[345336671,1734160232515,-501.96043294,0.0002015,2]
[345336672,1734160232525,-4722.0,0.00020173,2]
[345336673,1734160232534,-292.909,0.0002019,2]
[345336674,1734160232543,-189.9,0.00020195,2]
[345336675,1734160232553,-531.54,0.00020242,2]
[345336676,1734160232562,-250.0,0.00020368,2]
[345336677,1734160232571,-985.64,0.00020521,2]
[345336678,1734160232581,-659.54,0.00020701,2]
[345336679,1734160232590,-8746.8691,0.000209,2]
[345336680,1734160232600,-166.98675495,0.000209,2]
[345336681,1734160232610,-207.95833771,0.000209,2]
[345336682,1734160232619,-166.98675492,0.00020963,2]
[345336683,1734160232629,-500.0,0.00020973,2]
[345336684,1734160232639,-500.0,0.00020973,2]
[345336685,1734160232649,-7500.0,0.00020999,2]
[345336686,1734160232661,-338.14281142,0.00020999,2]
[345336687,1734160232670,-500.0,0.00020999,2]
[345336688,1734160232679,-429.9412797,0.00020999,2]
[345336689,1734160232689,-255.70716389,0.00020999,2]
[345336690,1734160232697,-500.0,0.00020999,2]
[345336691,1734160232707,-517.93563692,0.00020999,2]
[345336692,1734160232716,-316.32633116,0.00020999,2]
[345336693,1734160232725,-599.0,0.00021,3]
[345336694,1734160232734,-994.25,0.00021,2]
[345336695,1734160232743,-26959.40107451,0.00021,3]
[345336699,1734160238225,-73040.59892549,0.00021,3]
[345336700,1734160238236,-1000000.0,0.00021,2]
[345336701,1734160238246,-3159.8249476,0.00021,3]
[345336702,1734160238256,-505.0,0.00021,2]
[345336703,1734160238265,-166.98675492,0.00021025,2]
[345336704,1734160238274,-1294.915,0.00021049,2]
[345336705,1734160238284,-183.643,0.00021049,2]
[345336706,1734160238293,-150.0,0.00021061,2]
[345336707,1734160238302,-500.0,0.00021073,2]
[345336708,1734160238312,-500.19578466,0.00021073,2]